fUSD/lending_fUSD_20240519
["ID","MTS","AMOUNT","RATE_DAILY","PERIOD"]
[327442314,1716077453600,-500.0,0.00027671,2]
[327442315,1716077453610,-500.0,0.00027671,2]
[327442316,1716077453619,-500.0,0.00027671,2]
[327442317,1716077453628,-500.0,0.00027671,2]
[327442318,1716077453637,-151.0,0.00027671,7]
[327442319,1716077453647,-500.0,0.00027671,2]
[327442320,1716077453656,-500.0,0.00027671,2]
[327442321,1716077453665,-500.0,0.00027671,2]
[327442322,1716077453676,-500.0,0.00027671,2]
[327442323,1716077453688,-500.0,0.00027671,2]
[327442324,1716077453697,-774.08,0.00027671,2]
[327442325,1716077453706,-750.89,0.00027671,2]
[327442326,1716077453716,-151.0,0.00027671,7]
[327442327,1716077453726,-500.0,0.00027671,2]
[327442328,1716077453735,-500.0,0.00027671,2]
[327442329,1716077453744,-500.0,0.00027671,2]
[327442330,1716077453755,-1264.74,0.00027671,2]
[327442331,1716077453765,-500.0,0.00027671,2]
[327442332,1716077453774,-500.0,0.00027671,2]
[327442333,1716077453783,-164.364805,0.00027671,7]
[327442334,1716077453792,-732.31,0.00027671,2]
[327442335,1716077453801,-508.23679556,0.00027671,2]
[327442336,1716077453811,-500.0,0.00027671,2]
[327442337,1716077453819,-500.0,0.00027671,2]
[327442338,1716077453830,-151.0,0.00027671,7]
[327442339,1716077453839,-300.66945092,0.00027671,2]
[327442340,1716077453973,-660.69054908,0.00027671,2]
[327442341,1716077453982,-718.93986427,0.00027671,2]
[327442342,1716077454005,-667.34675804,0.00027671,2]
[327442343,1716077454016,-11.53337769,0.00027671,2]
[327442344,1716077454025,-500.0,0.00027671,2]
[327442345,1716077454034,-462.56247653,0.00027671,2]
[327442346,1716077454054,-157.98752347,0.00027671,2]
[327442347,1716077454064,-500.0,0.00027671,2]
[327442348,1716077454073,-500.0,0.00027671,2]
[327442349,1716077454083,-500.0,0.00027671,2]
[327442350,1716077454092,-500.0,0.00027671,2]
[327442351,1716077454102,-500.0,0.00027671,2]
[327442352,1716077454111,-500.0,0.00027671,2]
[327442353,1716077454120,-500.0,0.00027671,2]
[327442354,1716077454129,-500.0,0.00027671,2]
[327442355,1716077454139,-788.47,0.00027671,2]
[327442356,1716077454148,-702.58,0.00027671,2]
[327442357,1716077454157,-406.69,0.00027671,2]
[327442358,1716077454167,-500.0,0.00027671,2]
[327442359,1716077454176,-717.76,0.00027671,2]
[327442360,1716077454186,-1107.18,0.00027671,2]
[327442361,1716077454195,-500.0,0.00027671,2]
[327442362,1716077454204,-500.0,0.00027671,2]
[327442363,1716077454213,-500.0,0.00027671,2]
[327442364,1716077454223,-151.0,0.00027671,7]
[327442365,1716077454232,-500.0,0.00027671,2]
[327442366,1716077454241,-1418.57,0.00027671,2]
[327442367,1716077454250,-500.0,0.00027671,2]
[327442368,1716077454260,-152.833888,0.00027671,7]
[327442369,1716077454269,-500.0,0.00027671,2]
[327442370,1716077454279,-548.41,0.00027671,2]
[327442371,1716077454288,-500.0,0.00027671,2]
[327442372,1716077454297,-500.0,0.00027671,2]
[327442373,1716077454307,-500.0,0.00027671,2]
[327442374,1716077454316,-731.89,0.00027671,2]
[327442375,1716077454327,-151.0,0.00027671,7]
[327442376,1716077454336,-654.67,0.00027671,2]
[327442377,1716077454345,-500.0,0.00027671,2]
[327442378,1716077454355,-500.0,0.00027671,2]
[327442379,1716077454364,-575.3,0.00027671,2]
[327442380,1716077454373,-151.0,0.00027671,7]
[327442381,1716077454383,-500.0,0.00027671,2]
[327442382,1716077454392,-500.0,0.00027671,2]
[327442383,1716077454401,-500.0,0.00027671,2]
[327442384,1716077454411,-151.0,0.00027671,7]
[327442385,1716077454421,-753.87,0.00027671,2]
[327442386,1716077454430,-558.06,0.00027671,2]
[327442387,1716077454439,-500.0,0.00027671,2]
[327442388,1716077454448,-500.0,0.00027671,2]
[327442389,1716077454458,-500.0,0.00027671,2]
[327442390,1716077454467,-500.0,0.00027671,2]
[327442391,1716077454476,-500.0,0.00027671,2]
[327442392,1716077454486,-592.45,0.00027671,2]
[327442393,1716077454495,-500.0,0.00027671,2]
[327442394,1716077454504,-500.0,0.00027671,2]
[327442395,1716077454515,-1470.72,0.00027671,2]
[327442396,1716077454524,-500.0,0.00027671,2]
[327442397,1716077454534,-735.2,0.00027671,2]
[327442398,1716077454543,-897.8,0.00027671,2]
[327442399,1716077454553,-500.0,0.00027671,2]
[327442400,1716077454562,-500.0,0.00027671,2]
[327442401,1716077454571,-500.0,0.00027671,2]
[327442402,1716077454581,-500.0,0.00027671,2]
[327442403,1716077454590,-500.0,0.00027671,2]
[327442404,1716077454599,-394.05428682,0.00027671,2]
[327442405,1716077454608,-1194.38,0.00027671,2]
[327442406,1716077454617,-894.37,0.00027671,2]
[327442407,1716077454626,-500.0,0.00027671,2]
[327442408,1716077454635,-567.91,0.00027671,2]
[327442409,1716077454645,-500.0,0.00027671,2]
[327442410,1716077454655,-1413.9,0.00027671,2]
[327442411,1716077454664,-500.0,0.00027671,2]
[327442412,1716077454674,-838.92,0.00027671,2]
[327442413,1716077454687,-579.0,0.00027671,2]
[327442414,1716077454697,-500.0,0.00027671,2]
[327442415,1716077454706,-500.0,0.00027671,2]
[327442416,1716077454716,-1047.05,0.00027671,2]
[327442417,1716077454726,-1288.52,0.00027671,2]
[327442418,1716077454735,-151.0,0.00027671,7]
[327442419,1716077454745,-512.22,0.00027671,2]
[327442420,1716077454757,-500.0,0.00027671,2]
[327442421,1716077454766,-737.25,0.00027671,2]
[327442422,1716077454775,-151.0,0.00027671,7]
[327442423,1716077454784,-151.0,0.00027671,7]
[327442424,1716077454794,-973.22,0.00027671,2]
[327442425,1716077454803,-1081.43,0.00027671,2]
[327442426,1716077454812,-151.0,0.00027671,7]
[327442427,1716077454821,-500.0,0.00027671,2]
[327442428,1716077454831,-539.38,0.00027671,2]
[327442429,1716077454841,-500.0,0.00027671,2]
[327442430,1716077454850,-500.0,0.00027671,2]
[327442431,1716077454859,-500.0,0.00027671,2]
[327442432,1716077454868,-500.0,0.00027671,2]
[327442433,1716077454877,-771.25,0.00027671,2]
[327442434,1716077454886,-151.0,0.00027671,7]
[327442435,1716077454896,-620.78,0.00027671,2]
[327442436,1716077454905,-500.0,0.00027671,2]
[327442437,1716077454914,-500.0,0.00027671,2]
[327442438,1716077454923,-500.0,0.00027671,2]
[327442439,1716077454932,-500.0,0.00027671,2]
[327442440,1716077454941,-500.0,0.00027671,2]
[327442441,1716077454950,-500.0,0.00027671,2]
[327442442,1716077454959,-500.0,0.00027671,2]
[327442443,1716077454969,-501.17,0.00027671,2]
[327442444,1716077454978,-500.0,0.00027671,2]
[327442445,1716077454987,-500.0,0.00027671,2]
[327442446,1716077454996,-500.0,0.00027671,2]
[327442447,1716077455005,-500.0,0.00027671,2]
[327442448,1716077455014,-500.0,0.00027671,2]
[327442449,1716077455023,-500.0,0.00027671,2]
[327442450,1716077455031,-500.0,0.00027671,2]
[327442451,1716077455040,-500.0,0.00027671,2]
[327442452,1716077455049,-500.0,0.00027671,2]
[327442453,1716077455058,-862.09,0.00027671,2]
[327442454,1716077455066,-500.0,0.00027671,2]
[327442455,1716077455075,-500.0,0.00027671,2]
[327442456,1716077455084,-500.0,0.00027671,2]
[327442457,1716077455092,-500.0,0.00027671,2]
[327442458,1716077455101,-500.0,0.00027671,2]
[327442459,1716077455110,-500.0,0.00027671,2]
[327442460,1716077455119,-500.0,0.00027671,2]
[327442461,1716077455128,-596.95,0.00027671,2]
[327442462,1716077455137,-881.6,0.00027671,2]
[327442463,1716077455147,-500.0,0.00027671,2]
[327442464,1716077455155,-720.84,0.00027671,2]
[327442465,1716077455165,-500.0,0.00027671,2]
[327442466,1716077455175,-662.13,0.00027671,2]
[327442467,1716077455185,-500.0,0.00027671,2]
[327442468,1716077455194,-500.0,0.00027671,2]
[327442469,1716077455203,-2975.3,0.00027671,2]
[327442470,1716077455212,-500.0,0.00027671,2]
[327442471,1716077455221,-500.0,0.00027671,2]
[327442472,1716077455230,-151.0,0.00027671,7]
[327442473,1716077455239,-500.0,0.00027671,2]
[327442474,1716077455249,-500.0,0.00027671,2]
[327442475,1716077455259,-500.0,0.00027671,2]
[327442476,1716077455268,-1121.07,0.00027671,2]
[327442477,1716077455277,-500.0,0.00027671,2]
[327442478,1716077455478,-500.0,0.00027671,2]
[327442479,1716077455488,-875.83,0.00027671,2]
[327442480,1716077455498,-500.0,0.00027671,2]
[327442481,1716077455507,-500.0,0.00027671,2]
[327442482,1716077455517,-500.0,0.00027671,2]
[327442483,1716077455526,-500.0,0.00027671,2]
[327442484,1716077455536,-1130.37,0.00027671,2]
[327442485,1716077455545,-695.7,0.00027671,2]
[327442486,1716077455555,-1392.95,0.00027671,2]
[327442487,1716077455564,-500.0,0.00027671,2]
[327442488,1716077455574,-500.0,0.00027671,2]
[327442489,1716077455584,-173.548281,0.00027671,7]
[327442490,1716077455594,-500.0,0.00027671,2]
[327442491,1716077455603,-698.81,0.00027671,2]
[327442492,1716077455613,-791.91,0.00027671,2]
[327442493,1716077455623,-500.0,0.00027671,2]
[327442494,1716077455632,-500.0,0.00027671,2]
[327442495,1716077455642,-1456.87,0.00027671,2]
[327442496,1716077455651,-151.0,0.00027671,7]
[327442497,1716077455661,-1314.57,0.00027671,2]
[327442498,1716077455670,-2275.44,0.00027671,2]
[327442499,1716077455686,-574.86,0.00027671,2]
[327442500,1716077455695,-500.0,0.00027671,2]
[327442501,1716077455705,-511.71,0.00027671,2]
[327442502,1716077455716,-2814.42,0.00027671,2]
[327442503,1716077455726,-500.0,0.00027671,2]
[327442504,1716077455737,-500.0,0.00027671,2]
[327442505,1716077455747,-501.32,0.00027671,2]
[327442506,1716077455757,-500.0,0.00027671,2]
[327442507,1716077455769,-1303.92,0.00027671,2]
[327442508,1716077455778,-810.63,0.00027671,2]
[327442509,1716077455788,-500.0,0.00027671,2]
[327442510,1716077455798,-500.0,0.00027671,2]
[327442511,1716077455808,-4678.13,0.00027671,2]
[327442512,1716077455817,-500.0,0.00027671,2]
[327442513,1716077455828,-2780.12,0.00027671,2]
[327442514,1716077455837,-516.01,0.00027671,2]
[327442515,1716077455847,-887.4,0.00027671,2]
[327442516,1716077455856,-500.0,0.00027671,2]
[327442517,1716077455866,-151.0,0.00027671,7]
[327442518,1716077455875,-514.0,0.00027671,2]
[327442519,1716077455885,-725.59,0.00027671,2]
[327442520,1716077455894,-500.0,0.00027671,2]
[327442521,1716077455903,-1154.5,0.00027671,2]
[327442522,1716077455913,-151.0,0.00027671,7]
[327442523,1716077455923,-500.0,0.00027671,2]
[327442524,1716077455932,-1503.52,0.00027671,2]
[327442525,1716077455942,-500.0,0.00027671,2]
[327442526,1716077455951,-1444.2,0.00027671,2]
[327442527,1716077455961,-500.0,0.00027671,2]
[327442528,1716077455971,-1032.28,0.00027671,2]
[327442529,1716077455981,-500.0,0.00027671,2]
[327442530,1716077455991,-500.0,0.00027671,2]
[327442531,1716077456000,-500.0,0.00027671,2]
[327442532,1716077456010,-500.0,0.00027671,2]
[327442533,1716077456019,-1522.9,0.00027671,2]
[327442534,1716077456028,-561.95,0.00027671,2]
[327442535,1716077456038,-7233.9,0.00027671,2]
[327442536,1716077456048,-776.17,0.00027671,2]
[327442537,1716077456057,-500.0,0.00027671,2]
[327442538,1716077456067,-605.79,0.00027671,2]
[327442539,1716077456076,-500.0,0.00027671,2]
[327442540,1716077456086,-1300.37,0.00027671,2]
[327442541,1716077456095,-1051.93,0.00027671,2]
[327442542,1716077456105,-500.0,0.00027671,2]
[327442543,1716077456115,-151.0,0.00027671,7]
[327442544,1716077456124,-6024.88,0.00027671,2]
[327442545,1716077456134,-500.0,0.00027671,2]
[327442546,1716077456143,-5592.85,0.00027671,2]
[327442547,1716077456153,-151.0,0.00027671,7]
[327442548,1716077456162,-500.0,0.00027671,2]
[327442549,1716077456172,-1220.15,0.00027671,2]
[327442550,1716077456181,-11547.64,0.00027671,2]
[327442551,1716077456190,-500.0,0.00027671,2]
[327442552,1716077456199,-500.0,0.00027671,2]
[327442553,1716077456210,-500.0,0.00027671,2]
[327442554,1716077456220,-403.17429673,0.00027671,2]
[327442555,1716077456229,-151.0,0.00027671,7]
[327442556,1716077456239,-964.95,0.00027671,2]
[327442557,1716077456248,-500.0,0.00027671,2]
[327442558,1716077456258,-151.0,0.00027671,7]
[327442559,1716077456267,-730.61,0.00027671,2]
[327442560,1716077456277,-500.0,0.00027671,2]
[327442561,1716077456286,-684.37,0.00027671,2]
[327442562,1716077456296,-500.0,0.00027671,2]
[327442563,1716077456305,-2185.64,0.00027671,2]
[327442564,1716077456315,-523.440221,0.00027671,7]
[327442565,1716077456325,-500.0,0.00027671,2]
[327442566,1716077456335,-1150.67,0.00027671,2]
[327442567,1716077456345,-500.0,0.00027671,2]
[327442568,1716077456354,-500.0,0.00027671,2]
[327442569,1716077456366,-922.42,0.00027671,2]
[327442570,1716077456375,-523.440221,0.00027671,7]
[327442571,1716077456384,-514.18176135,0.00027671,2]
[327442572,1716077456393,-714.21,0.00027671,2]
[327442573,1716077456403,-500.0,0.00027671,2]
[327442574,1716077456412,-667.74,0.00027671,2]
[327442575,1716077456422,-500.0,0.00027671,2]
[327442576,1716077456432,-500.0,0.00027671,2]
[327442577,1716077456441,-624.56,0.00027671,2]
[327442578,1716077456450,-500.0,0.00027671,2]
[327442579,1716077456460,-500.0,0.00027671,2]
[327442580,1716077456469,-253.455997,0.00027671,7]
[327442581,1716077456479,-500.0,0.00027671,2]
[327442582,1716077456488,-785.83,0.00027671,2]
[327442583,1716077456498,-500.0,0.00027671,2]
[327442584,1716077456507,-500.0,0.00027671,2]
[327442585,1716077456517,-1993.35,0.00027671,2]
[327442586,1716077456526,-500.0,0.00027671,2]
[327442587,1716077456536,-253.455997,0.00027671,7]
[327442588,1716077456546,-151.0,0.00027671,7]
[327442589,1716077456556,-500.0,0.00027671,2]
[327442590,1716077456566,-500.0,0.00027671,2]
[327442591,1716077456575,-500.0,0.00027671,2]
[327442592,1716077456585,-593.18,0.00027671,2]
[327442593,1716077456596,-555.98,0.00027671,2]
[327442594,1716077456605,-500.0,0.00027671,2]
[327442595,1716077456615,-500.0,0.00027671,2]
[327442596,1716077456625,-708.12,0.00027671,2]
[327442597,1716077456635,-1034.98,0.00027671,2]
[327442598,1716077456644,-500.0,0.00027671,2]
[327442599,1716077456653,-819.64,0.00027671,2]
[327442600,1716077456663,-500.0,0.00027671,2]
[327442601,1716077456673,-1062.72,0.00027671,2]
[327442602,1716077456687,-500.0,0.00027671,2]
[327442603,1716077456696,-614.07,0.00027671,2]
[327442604,1716077456706,-186.431819,0.00027671,7]
[327442605,1716077456715,-500.0,0.00027671,2]
[327442606,1716077456726,-609.38,0.00027671,2]
[327442607,1716077456735,-500.0,0.00027671,2]
[327442608,1716077456745,-6648.46,0.00027671,2]
[327442609,1716077456756,-1688.51,0.00027671,2]
[327442610,1716077456765,-564.19,0.00027671,2]
[327442611,1716077456774,-151.0,0.00027671,7]
[327442612,1716077456783,-186.431819,0.00027671,7]
[327442613,1716077456792,-1089.3,0.00027671,2]
[327442614,1716077456801,-1349.04,0.00027671,2]
[327442615,1716077456811,-151.0,0.00027671,7]
[327442616,1716077456820,-846.78,0.00027671,2]
[327442617,1716077456829,-1553.34,0.00027671,2]
[327442618,1716077456839,-830.23,0.00027671,2]
[327442619,1716077456848,-860.44,0.00027671,2]
[327442620,1716077456857,-1308.68,0.00027671,2]
[327442621,1716077456866,-500.0,0.00027671,2]
[327442622,1716077456875,-608.58,0.00027671,2]
[327442623,1716077456884,-812.28,0.00027671,2]
[327442624,1716077456894,-500.0,0.00027671,2]
[327442625,1716077456903,-500.0,0.00027671,2]
[327442626,1716077456912,-151.0,0.00027671,7]
[327442627,1716077456922,-792.67,0.00027671,2]
[327442628,1716077456931,-500.0,0.00027671,2]
[327442629,1716077456940,-500.0,0.00027671,2]
[327442630,1716077456950,-1716.02,0.00027671,2]
[327442631,1716077456959,-613.67,0.00027671,2]
[327442632,1716077456968,-151.0,0.00027671,7]
[327442633,1716077456977,-2023.97,0.00027671,2]
[327442634,1716077456987,-500.0,0.00027671,2]
[327442635,1716077456996,-616.74,0.00027671,2]
[327442636,1716077457005,-151.0,0.00027671,7]
[327442637,1716077457015,-673.43,0.00027671,2]
[327442638,1716077457024,-4593.99,0.00027671,2]
[327442639,1716077457033,-500.0,0.00027671,2]
[327442640,1716077457042,-467.70956308,0.00027671,2]
[327442641,1716077457051,-500.0,0.00027671,2]
[327442642,1716077457061,-519.79,0.00027671,2]
[327442643,1716077457070,-151.0,0.00027671,7]
[327442644,1716077457078,-525.03,0.00027671,2]
[327442645,1716077457088,-224.890398,0.00027671,7]
[327442646,1716077457097,-500.0,0.00027671,2]
[327442647,1716077457106,-512.61013276,0.00027671,2]
[327442648,1716077457115,-1670.46,0.00027671,2]
[327442649,1716077457124,-174.947475,0.00027671,7]
[327442650,1716077457133,-703.22,0.00027671,2]
[327442651,1716077457143,-500.0,0.00027671,2]
[327442652,1716077457152,-500.0,0.00027671,2]
[327442653,1716077457161,-500.0,0.00027671,2]
[327442654,1716077457171,-224.890398,0.00027671,7]
[327442655,1716077457180,-500.0,0.00027671,2]
[327442656,1716077457189,-936.93,0.00027671,2]
[327442657,1716077457199,-894.82,0.00027671,2]
[327442658,1716077457208,-500.0,0.00027671,2]
[327442659,1716077457217,-500.0,0.00027671,2]
[327442660,1716077457226,-151.962472,0.00027671,7]
[327442661,1716077457236,-500.0,0.00027671,2]
[327442662,1716077457245,-500.0,0.00027671,2]
[327442663,1716077457256,-500.0,0.00027671,2]
[327442664,1716077457265,-500.0,0.00027671,2]
[327442665,1716077457275,-695.82,0.00027671,2]
[327442666,1716077457283,-715.76,0.00027671,2]
[327442667,1716077457292,-3124.26,0.00027671,2]
[327442668,1716077457301,-500.0,0.00027671,2]
[327442669,1716077457311,-510.06,0.00027671,2]
[327442670,1716077457320,-151.0,0.00027671,7]
[327442671,1716077457329,-500.0,0.00027671,2]
[327442672,1716077457339,-500.0,0.00027671,2]
[327442673,1716077457348,-877.57,0.00027671,2]
[327442674,1716077457358,-1656.39,0.00027671,2]
[327442675,1716077457367,-500.0,0.00027671,2]
[327442676,1716077457376,-500.0,0.00027671,2]
[327442677,1716077457385,-743.1,0.00027671,2]
[327442678,1716077457394,-528.22445011,0.00027671,2]
[327442679,1716077457403,-500.0,0.00027671,2]
[327442680,1716077457412,-6564.04,0.00027671,2]
[327442681,1716077457423,-641.49,0.00027671,2]
[327442682,1716077457434,-4260.91,0.00027671,2]
[327442683,1716077457443,-500.0,0.00027671,2]
[327442684,1716077457452,-500.0,0.00027671,2]
[327442685,1716077457461,-697.34,0.00027671,2]
[327442686,1716077457471,-2763.02,0.00027671,2]
[327442687,1716077457480,-151.0,0.00027671,7]
[327442688,1716077457489,-858.1,0.00027671,2]
[327442689,1716077457498,-500.0,0.00027671,2]
[327442690,1716077457508,-500.0,0.00027671,2]
[327442691,1716077457518,-151.0,0.00027671,7]
[327442692,1716077457526,-500.0,0.00027671,2]
[327442693,1716077457535,-1870.09,0.00027671,2]
[327442694,1716077457546,-500.0,0.00027671,2]
[327442695,1716077457556,-151.0,0.00027671,7]
[327442696,1716077457566,-151.826439,0.00027671,7]
[327442697,1716077457576,-500.0,0.00027671,2]
[327442698,1716077457586,-1489.33,0.00027671,2]
[327442699,1716077457595,-500.0,0.00027671,2]
[327442700,1716077457604,-500.0,0.00027671,2]
[327442701,1716077457613,-624.28,0.00027671,2]
[327442702,1716077457622,-1876.67,0.00027671,2]
[327442703,1716077457632,-151.0,0.00027671,7]
[327442704,1716077457641,-3030.58,0.00027671,2]
[327442705,1716077457651,-151.0,0.00027671,7]
[327442706,1716077457660,-151.0,0.00027671,7]
[327442707,1716077457670,-1754.2,0.00027671,2]
[327442708,1716077457684,-554.63338988,0.00027671,2]
[327442709,1716077457694,-4440.09,0.00027671,2]
[327442710,1716077457703,-285.51091895,0.00027671,2]
[327442711,1716077457713,-500.0,0.00027671,2]
[327442712,1716077457724,-191.122236,0.00027671,7]
[327442713,1716077457733,-151.0,0.00027671,7]
[327442714,1716077457743,-500.0,0.00027671,2]
[327442715,1716077457754,-151.0,0.00027671,7]
[327442716,1716077457763,-500.0,0.00027671,2]
[327442717,1716077457774,-500.0,0.00027671,2]
[327442718,1716077457785,-919.75,0.00027671,2]
[327442719,1716077457795,-1492.23,0.00027671,2]
[327442720,1716077457870,-747.95,0.00027671,2]
[327442721,1716077457879,-796.81,0.00027671,2]
[327442722,1716077457888,-151.0,0.00027671,7]
[327442723,1716077457898,-500.0,0.00027671,2]
[327442724,1716077457908,-4084.75,0.00027671,2]
[327442725,1716077457917,-500.0,0.00027671,2]
[327442726,1716077457927,-759.03,0.00027671,2]
[327442727,1716077457937,-500.0,0.00027671,2]
[327442728,1716077457946,-606.23967928,0.00027671,2]
[327442729,1716077457956,-500.0,0.00027671,2]
[327442730,1716077457965,-500.0,0.00027671,2]
[327442731,1716077457974,-500.0,0.00027671,2]
[327442732,1716077457983,-842.68,0.00027671,2]
[327442733,1716077457992,-1573.17,0.00027671,2]
[327442734,1716077458001,-500.0,0.00027671,2]
[327442735,1716077458011,-500.0,0.00027671,2]
[327442736,1716077458020,-611.84884379,0.00027671,2]
[327442737,1716077458028,-500.0,0.00027671,2]
[327442738,1716077458037,-500.0,0.00027671,2]
[327442739,1716077458046,-500.0,0.00027671,2]
[327442740,1716077458055,-1958.77,0.00027671,2]
[327442741,1716077458064,-1661.92,0.00027671,2]
[327442742,1716077458073,-500.0,0.00027671,2]
[327442743,1716077458082,-1716.41,0.00027671,2]
[327442744,1716077458091,-506.27512355,0.00027671,2]
[327442745,1716077458100,-500.0,0.00027671,2]
[327442746,1716077458109,-151.0,0.00027671,7]
[327442747,1716077458118,-4495.909897,0.00027671,7]
[327442748,1716077458128,-500.0,0.00027671,2]
[327442749,1716077458137,-253.7503524,0.00027671,2]
[327442750,1716077458146,-682.52,0.00027671,2]
[327442751,1716077458155,-612.02,0.00027671,2]
[327442752,1716077458165,-500.0,0.00027671,2]
[327442753,1716077458174,-512.53068337,0.00027671,2]
[327442754,1716077458183,-500.0,0.00027671,2]
[327442755,1716077458191,-691.49,0.00027671,2]
[327442756,1716077458201,-1225.99,0.00027671,2]
[327442757,1716077458210,-500.0,0.00027671,2]
[327442758,1716077458219,-504.06,0.00027671,2]
[327442759,1716077458228,-1815.65,0.00027671,2]
[327442760,1716077458237,-500.0,0.00027671,2]
[327442761,1716077458246,-2018.48,0.00027671,2]
[327442762,1716077458255,-151.0,0.00027671,7]
[327442763,1716077458265,-151.0,0.00027671,7]
[327442764,1716077458274,-359.51,0.00027671,2]
[327442765,1716077458283,-1716.75,0.00027671,2]
[327442766,1716077458292,-4495.909897,0.00027671,7]
[327442767,1716077458302,-980.98,0.00027671,2]
[327442768,1716077458311,-519.812481,0.00027671,7]
[327442769,1716077458320,-908.4,0.00027671,2]
[327442770,1716077458329,-500.0,0.00027671,2]
[327442771,1716077458338,-500.0,0.00027671,2]
[327442772,1716077458348,-500.0,0.00027671,2]
[327442773,1716077458357,-151.0,0.00027671,7]
[327442774,1716077458366,-519.812481,0.00027671,7]
[327442775,1716077458376,-1124.01,0.00027671,2]
[327442776,1716077458385,-2424.02,0.00027671,2]
[327442777,1716077458394,-500.0,0.00027671,2]
[327442778,1716077458404,-514.76419505,0.00027671,2]
[327442779,1716077458412,-500.0,0.00027671,2]
[327442780,1716077458422,-500.0,0.00027671,2]
[327442781,1716077458431,-1936.72,0.00027671,2]
[327442782,1716077458440,-1249.4,0.00027671,2]
[327442783,1716077458450,-151.0,0.00027671,7]
[327442784,1716077458459,-500.0,0.00027671,2]
[327442785,1716077458470,-500.0,0.00027671,2]
[327442786,1716077458480,-2316.41,0.00027671,2]
[327442787,1716077458489,-500.0,0.00027671,2]
[327442788,1716077458498,-1024.15,0.00027671,2]
[327442789,1716077458508,-151.0,0.00027671,7]
[327442790,1716077458517,-895.6,0.00027671,2]
[327442791,1716077458526,-500.0,0.00027671,2]
[327442792,1716077458535,-500.0,0.00027671,2]
[327442793,1716077458544,-500.0,0.00027671,2]
[327442794,1716077458553,-709.56,0.00027671,2]
[327442795,1716077458563,-500.0,0.00027671,2]
[327442796,1716077458572,-570.19,0.00027671,2]
[327442797,1716077458583,-1154.19,0.00027671,2]
[327442798,1716077458592,-500.0,0.00027671,2]
[327442799,1716077458601,-1378.01,0.00027671,2]
[327442800,1716077458610,-1873.84,0.00027671,2]
[327442801,1716077458620,-503.15,0.00027671,2]
[327442802,1716077458631,-500.0,0.00027671,2]
[327442803,1716077458640,-151.0,0.00027671,7]
[327442804,1716077458649,-500.0,0.00027671,2]
[327442805,1716077458658,-2689.46,0.00027671,2]
[327442806,1716077458667,-842.94,0.00027671,2]
[327442807,1716077458681,-956.07,0.00027671,2]
[327442808,1716077458690,-500.0,0.00027671,2]
[327442809,1716077458700,-500.0,0.00027671,2]
[327442810,1716077458709,-500.0,0.00027671,2]
[327442811,1716077458720,-500.0,0.00027671,2]
[327442812,1716077458729,-500.0,0.00027671,2]
[327442813,1716077458738,-1409.03,0.00027671,2]